[Event "IV Estrellas 2022"]
[Site "La Palma"]
[Date "2022.08.09"]
[Round "6.9"]
[White "Del Rey, Diego"]
[Black "Pleschke, Julius Jonas"]
[Result "1-0"]
[ECO "A45"]
[WhiteElo "2358"]
[BlackElo "1685"]
[Annotator "TA"]
[PlyCount "93"]
[EventDate "2022.08.06"]
[EventType "swiss"]
[EventCountry "ESP"]
[SourceTitle "playchess.com"]
[Source "ChessBase"]
[SourceQuality "1"]
[TimeControl "5400+30"]

{[%evp 9,93,14,25,-18,-12,-13,-11,-12,-2,-8,0,-4,0,-20,11,-2,0,-24,21,0,36,36,51,0,0,0,0,0,0,0,0,0,8,3,20,25,21,0,0,0,0,0,135,27,164,164,164,164,181,170,881,110,115,100,509,487,553,575,688,677,673,632,703,686,687,725,720,711,650,663,703,672,878,838,1057,1038,1016,1007,1191,1179,1178,1104,1824,1704,2485,2353]} 1. d4 {[%emt 0:00:02]} Nf6 {[%emt 0:00:07]} 2. Bg5 {[%emt 0:00:10]} e6 {[%emt 0:03:35]} 3. e4 {[%emt 0:00:22][%cal Be2e4,Be4e5][%mdl 32]} h6 {[%emt 0:00:11]} 4. Bxf6 {[%emt 0:00:04]} Qxf6 {[%emt 0:00:06]} 5. c3 {[%emt 0:00:06]} d5 {[%emt 0:11:16]} 6. e5 {[%emt 0:01:08] A45: Trompowsky Attack.} Qd8 {[%emt 0:00:23]} 7. Nf3 {[%emt 0:01:20]} c5 {[%emt 0:01:01]} 8. Bd3 {[%emt 0:01:39] The position is equal.} Nc6 {[%emt 0:00:29]} 9. dxc5 {[%emt 0:01:00]} a5 {[%emt 0:04:19] Inhibits b4.} 10. O-O {[%emt 0:02:21]} Bxc5 {[%emt 0:00:31]} 11. Nbd2 {[%emt 0:02:16]} O-O {[%emt 0:02:40]} 12. Nb3 {[%emt 0:01:38] [#]} Bb6 $146 {[%emt 0:04:36]} ({Predecessor:} 12... Ba7 13. Bc2 f5 14. exf6 Qxf6 15. Qd3 a4 16. Nbd4 e5 17. Qh7+ Kf7 18. Nxc6 bxc6 {0-1 (46) Franssila,T (2279)-Kauppila,O (2267) Jyvaskyla 2004}) 13. Bc2 {[%emt 0:00:45]} g6 {[%emt 0:08:39]} 14. h4 {[%emt 0:03:03]} h5 {[%emt 0:00:25]} 15. Qd2 {[%emt 0:01:58]} Kg7 {[%emt 0:00:08] Inhibits Qh6+.} 16. Nbd4 {[%emt 0:00:22]} (16. Nc1 $14) 16... Nxd4 $11 {[%emt 0:03:34]} 17. cxd4 {[%emt 0:00:29]} Bd7 {[%emt 0:00:26]} 18. Bd3 {[%emt 0:02:56]} Rc8 {[%emt 0:01:02]} 19. Qf4 {[%emt 0:05:39]} Qe7 {[%emt 0:04:46]} 20. Rae1 {[%emt 0:04:31]} Ba4 {[%emt 0:04:06]} 21. b3 {[%emt 0:04:33]} Bd7 {[%emt 0:00:38]} 22. Re3 {[%emt 0:01:35]} Rc3 {[%emt 0:01:06]} 23. Bb1 {[%emt 0:16:42]} Rfc8 {[%emt 0:05:44]} 24. g4 {[%emt 0:00:22] Black must now prevent gxh5.} hxg4 {[%emt 0:01:47]} 25. Qxg4 {[%emt 0:03:56] Threatens to win with h5.} Rc1 {[%emt 0:02:04]} (25... Rxe3 $11 {remains equal.} 26. fxe3 Bb5) 26. Bd3 $16 {[%emt 0:00:40]} Rxf1+ {[%emt 0:01:43]} (26... Be8 $1 $11) 27. Kxf1 $18 {[%emt 0:00:02][%cal Bg1f1,Bf1g2,Bg2g3][%mdl 32]} Rh8 {[%emt 0:03:10]} 28. Ng5 $1 {[%emt 0:01:40] Strongly threatening Rf3.} Be8 {[%emt 0:05:31] [#]} 29. Rf3 $1 {[%emt 0:06:41][%cal Od3g6] aiming for Bxg6!} Qb4 $2 {[%emt 0:03:49] [#]} (29... Rh5 30. Rf6 Bd8 31. Nxe6+ fxe6) 30. Rf4 $2 {[%emt 0:06:57]} ({Not} 30. Qf4 Bd8 $11) (30. Bxg6 $1 $18 {[%cal Og5e6][%mdl 512] White wants to mate with Nxe6+!} fxg6 31. Nxe6+ Kh7 32. h5) 30... Bd8 $16 {[%emt 0:11:50]} 31. Kg2 {[%emt 0:08:03][%cal Od3g6] White is much more active.} Qd2 $2 {[%emt 0:02:18][%mdl 8192] [#]} (31... Rg8 $16 {is a better chance.}) 32. Bxg6 $1 $18 {[%emt 0:01:29][%cal Og5e6][%mdl 512] White is clearly winning.} Bxg5 {[%emt 0:00:55]} (32... Qxf4 33. Qxf4) 33. Qxg5 {[%emt 0:00:46][%cal Of4f7] Threatening mate with Rxf7+!} fxg6 {[%emt 0:02:02] [#]} 34. Rf7+ $3 {[%emt 0:00:05][%mdl 576] Discovered Attack} Bxf7 {[%emt 0:00:12]} 35. Qxd2 {[%emt 0:00:05]} Rxh4 {[%emt 0:00:12][%mdl 4096] Endgame KQ-KRB} 36. Kg3 {[%emt 0:00:18]} Rh5 {[%emt 0:00:48]} 37. Qxa5 {[%emt 0:00:14]} Rg5+ {[%emt 0:00:21]} 38. Kf4 {[%emt 0:00:13]} Rf5+ {[%emt 0:00:10]} 39. Ke3 {[%emt 0:00:06]} g5 {[%emt 0:00:17]} 40. Qb6 {[%emt 0:01:21]} g4 {[%emt 0:00:18]} 41. Qxb7 {[%emt 0:00:20]} Kh6 {[%emt 0:00:33]} 42. Qe7 {[%emt 0:03:19]} Rf3+ {[%emt 0:00:48]} 43. Ke2 {[%emt 0:00:25]} Bh5 {[%emt 0:00:05]} 44. Qxe6+ {[%emt 0:00:26]} Kg5 {[%emt 0:00:20]} 45. Ke1 {[%emt 0:00:39]} Kh4 {[%emt 0:02:01]} 46. Qxd5 {[%emt 0:00:38]} Kh3 {[%emt 0:00:36]} 47. e6 {[%emt 0:00:55] Weighted Error Value: White=0.20 (precise) /Black=0.38} 1-0

[Event "IV Estrellas 2022"]
[Site "La Palma"]
[Date "2022.08.09"]
[Round "6.10"]
[White "Hernandez Leon, Sergio"]
[Black "Acosta Sosa, Juan Manuel"]
[Result "1/2-1/2"]
[ECO "B22"]
[WhiteElo "2094"]
[BlackElo "2310"]
[Annotator "TA"]
[PlyCount "72"]
[EventDate "2022.08.06"]
[EventType "swiss"]
[EventCountry "ESP"]
[SourceTitle "playchess.com"]
[Source "ChessBase"]
[SourceQuality "1"]
[TimeControl "5400+30"]

{[%evp 10,72,20,30,29,33,37,10,8,0,0,-18,-18,-12,-21,-16,-10,-9,-13,-18,-15,-20,-12,-15,-18,-12,-14,-25,-9,-24,-3,-3,-8,-16,21,0,0,0,0,0,21,-16,0,-17,0,0,0,0,0,0,0,0,8,0,0,0,14,13,20,0,0,0,22,0,0]} 1. e4 {[%emt 0:00:02]} c5 {[%emt 0:00:06]} 2. c3 {[%emt 0:00:14]} d5 {[%emt 0:00:07]} 3. exd5 {[%emt 0:00:05]} Qxd5 {[%emt 0:00:07]} 4. d4 {[%emt 0:00:06]} Nc6 {[%emt 0:00:14]} 5. Nf3 {[%emt 0:00:05][%cal Bg1f3,Bf3d4,Bd4c6][%mdl 32]} Bf5 {[%emt 0:00:28]} 6. Be3 {[%emt 0:01:01]} Nf6 {[%emt 0:00:11] B22: Sicilian: 2 c3.} 7. Na3 {[%emt 0:04:51] Black must now prevent Bc4.} cxd4 {[%emt 0:00:55]} 8. Nb5 {[%emt 0:04:30]} O-O-O {[%emt 0:05:50] Prevents Nc7.} 9. Nfxd4 {[%emt 0:01:27]} (9. Nbxd4 {looks sharper.} Ng4 10. Qb3 Nxe3 11. fxe3 e6 12. Qxd5 Rxd5 13. Bc4) 9... Ng4 $1 {[%emt 0:04:50]} 10. Nxc6 {[%emt 0:14:26]} (10. Bd2 $5 {[%cal Rd4c6]}) 10... Qxd1+ {[%emt 0:03:02]} 11. Rxd1 {[%emt 0:00:15] Chess con chili.} Rxd1+ {[%emt 0:00:04]} 12. Kxd1 {[%emt 0:00:07]} Nxe3+ {[%emt 0:00:14]} 13. fxe3 {[%emt 0:00:05]} bxc6 {[%emt 0:00:08]} 14. Nd4 {[%emt 0:04:06]} Be4 {[%emt 0:00:42] [#]} 15. Bc4 $146 {[%emt 0:03:24]} ({Predecessor:} 15. Kd2 e5 16. Nf3 f6 17. Bd3 Bd5 18. e4 Be6 19. b4 g6 20. Kc2 Bh6 21. Nd2 {0-1 (38) Puranik,A (2584)-Shevchenko,K (2592) Chess.com INT 2020}) 15... e5 {[%emt 0:08:52]} 16. Nf3 {[%emt 0:03:18]} f6 {[%emt 0:00:18] Against Ng5} 17. Ke2 {[%emt 0:00:08]} Kc7 {[%emt 0:03:20]} 18. Rd1 {[%emt 0:01:45]} Bf5 {[%emt 0:01:47] Strongly threatening ...e4.} 19. h3 {[%emt 0:02:15]} Bd6 {[%emt 0:00:51]} 20. Nh4 {[%emt 0:00:45] The position is equal.} Be4 {[%emt 0:05:00]} 21. Bd3 {[%emt 0:02:19]} Bxd3+ {[%emt 0:00:39]} (21... Bd5 $5 {[%cal Re5e4]}) 22. Rxd3 $11 {[%emt 0:00:22][%mdl 4096] Endgame KRB-KRN} Rb8 {[%emt 0:02:04]} 23. Rd2 {[%emt 0:00:15]} g6 {[%emt 0:00:48]} 24. e4 {[%emt 0:00:50]} Kd7 {[%emt 0:00:31]} 25. Kf3 {[%emt 0:05:07]} Ke6 {[%emt 0:00:16]} 26. g4 {[%emt 0:00:27]} Rb5 {[%emt 0:02:20]} 27. Ng2 {[%emt 0:01:05]} Rb8 {[%emt 0:02:06]} 28. Ne3 {[%emt 0:04:24]} Rh8 {[%emt 0:00:32]} 29. Nc4 {[%emt 0:00:27]} Bc7 {[%emt 0:00:22]} 30. Rg2 {[%emt 0:01:34]} Bb6 {[%emt 0:01:06]} 31. Rd2 {[%emt 0:00:13] [#] Rd6+ is the strong threat.} Bc7 {[%emt 0:00:23] Against Rd6+} 32. Rg2 {[%emt 0:00:08]} Rf8 {[%emt 0:00:08]} 33. Ke2 {[%emt 0:02:32]} Rd8 {[%emt 0:00:45]} 34. Rf2 {[%emt 0:00:11]} Rh8 {[%emt 0:06:43]} 35. Rg2 {[%emt 0:02:20]} Bb6 {[%emt 0:04:39]} 36. Kf3 {[%emt 0:03:52]} Rf8 {[%emt 0:00:12] Weighted Error Value: White=0.06 (flawless) /Black=0.06 (flawless)} 1/2-1/2

[Event "IV Estrellas 2022"]
[Site "La Palma"]
[Date "2022.08.09"]
[Round "6.11"]
[White "Baeza Escudero, Javier"]
[Black "Estremera Panos, Sergio"]
[Result "0-1"]
[ECO "B32"]
[WhiteElo "1861"]
[BlackElo "2262"]
[Annotator "TA"]
[PlyCount "92"]
[EventDate "2022.08.06"]
[EventType "swiss"]
[EventCountry "ESP"]
[SourceTitle "playchess.com"]
[Source "ChessBase"]
[SourceQuality "1"]
[TimeControl "5400+30"]

{[%evp 11,92,31,27,27,41,41,35,43,44,35,33,34,56,56,62,62,64,41,42,43,54,27,25,20,12,-10,0,0,0,0,0,0,0,-5,0,0,16,13,14,3,2,10,9,-5,0,0,8,-58,-58,-60,-63,-61,-55,-51,-39,-78,-78,-79,-80,-80,-78,-88,-97,-101,-106,-109,-101,-101,-104,-164,-157,-155,-164,-270,-251,-296,-286,-316,-316,-316,-316,-29976,-29965]} 1. e4 {[%emt 0:05:00]} c5 {[%emt 0:00:21]} 2. Nf3 {[%emt 0:00:08][%cal Bg1f3,Bf3d4,Bd4b5,Bb5c3,Bc3d5][%mdl 32]} Nc6 {[%emt 0:00:15]} 3. d4 {[%emt 0:00:08]} cxd4 {[%emt 0:00:06]} 4. Nxd4 {[%emt 0:00:07]} e5 {[%emt 0:00:32]} 5. Nb5 {[%emt 0:00:10]} d6 {[%emt 0:00:09]} 6. c4 {[%emt 0:00:15]} Be6 $1 {[%emt 0:01:29][%mdl 4] outshines the older 6...Be7.} 7. Bd3 {[%emt 0:02:53] B32: Sicilian: Löwenthal and Kalashnikov Variations.} g6 {[%emt 0:03:57]} 8. O-O {[%emt 0:01:33]} a6 {[%emt 0:00:56]} 9. N5c3 {[%emt 0:03:33] White is slightly better.} Bg7 {[%emt 0:00:11]} 10. Be3 {[%emt 0:02:03]} Nf6 {[%emt 0:10:50]} 11. Nd5 {[%emt 0:07:45]} Nd7 {[%emt 0:15:38] Against Bb6} 12. Nbc3 {[%emt 0:06:30]} O-O {[%emt 0:00:25]} 13. Qd2 {[%emt 0:05:29]} Rc8 {[%emt 0:09:18] [#]} 14. b4 $146 {[%emt 0:09:53]} ({Predecessor:} 14. Rad1 Kh8 15. b3 f5 16. f4 g5 17. exf5 Bxd5 18. fxg5 Bg8 19. f6 Nxf6 20. gxf6 Rxf6 {1-0 (40) Zawadzka,J (2403)-Pavlidou,E (2136) Iasi 2021}) 14... Nd4 {[%emt 0:03:30]} 15. Rab1 {[%emt 0:05:57]} Kh8 {[%emt 0:15:45]} 16. Rfc1 {[%emt 0:01:36]} f5 {[%emt 0:01:25]} 17. Bg5 {[%emt 0:04:48]} Nf6 {[%emt 0:04:54]} 18. f4 {[%emt 0:06:12]} Bxd5 {[%emt 0:05:41]} (18... exf4 {looks sharper.} 19. exf5 Bxf5 20. Nxf6 Bxf6 21. Bxf4 Bxd3 22. Qxd3 Bg7) 19. Nxd5 {[%emt 0:04:09]} fxe4 {[%emt 0:00:55]} 20. Bxf6 {[%emt 0:02:15][%mdl 64] Remove Defender} Bxf6 {[%emt 0:00:10]} 21. Bxe4 {[%emt 0:01:08]} exf4 {[%emt 0:00:13]} 22. Nxf4 {[%emt 0:03:23]} Bg7 {[%emt 0:01:01][%cal Of8f4]} 23. Kh1 {[%emt 0:02:53]} ({Don't blunder} 23. Bxb7 $2 {[#]} Qb6 $1 24. Qd3 (24. Nxg6+ $2 hxg6 25. c5 Qxb7 $19) 24... Ne2+ 25. Kh1 Nxf4 $19) 23... Rxf4 {[%emt 0:01:30]} 24. Qxf4 {[%emt 0:00:12]} Ne2 {[%emt 0:00:02][%csl LRc1,LRf4] [#]} 25. Qg4 {[%emt 0:01:35]} Nxc1 {[%emt 0:00:11]} 26. Rxc1 {[%emt 0:00:07]} Rc7 {[%emt 0:05:40]} 27. h4 {[%emt 0:00:56]} Be5 {[%emt 0:05:08][%cal Od6d5,Bg7e5,Be5g3,Bg3f4][%mdl 32]} 28. g3 {[%emt 0:02:40]} Qf6 {[%emt 0:01:15][%cal Oc7c4]} 29. Qf3 {[%emt 0:05:12]} (29. Kg2 $11) 29... Qxf3+ $15 {[%emt 0:00:55]} 30. Bxf3 {[%emt 0:00:10]} Bxg3 {[%emt 0:00:09][%mdl 4096] Endgame KRB-KRB} 31. h5 {[%emt 0:00:05]} Kg7 {[%emt 0:01:28]} 32. hxg6 {[%emt 0:00:26]} hxg6 {[%emt 0:00:02]} 33. Be4 {[%emt 0:01:41]} Bf4 {[%emt 0:00:19]} 34. Rc2 {[%emt 0:00:26]} b6 {[%emt 0:01:23]} 35. Kg2 {[%emt 0:01:37]} g5 {[%emt 0:00:49]} 36. Kf3 {[%emt 0:00:10]} Kf6 {[%emt 0:00:19]} 37. Kg4 {[%emt 0:01:16]} Ke5 {[%emt 0:00:51]} 38. Bd5 {[%emt 0:03:04]} Kd4 {[%emt 0:01:06] Hoping for ...b5.} 39. Re2 {[%emt 0:01:48]} Kc3 {[%emt 0:04:39]} 40. b5 {[%emt 0:00:27]} (40. Re4 $17 {is a better defense.}) 40... axb5 $19 {[%emt 0:00:58]} 41. cxb5 {[%emt 0:00:24]} Rc5 {[%emt 0:00:15][%csl LRb5,LRd5]} 42. Bc6 {[%emt 0:00:26]} (42. Bb3 $142) 42... d5 {[%emt 0:00:12][%cal Bd6d5,Bd5d4,Bd4d3][%mdl 32] ...d4 is the strong threat.} 43. Re6 {[%emt 0:01:56]} d4 {[%emt 0:00:31] aiming for ...d3.} 44. a4 {[%emt 0:00:13]} d3 {[%emt 0:03:28] And now ...d2 would win.} 45. Bf3 {[%emt 0:01:19]} Rc4 {[%emt 0:00:37]} 46. Rxb6 $2 {[%emt 0:02:13]} (46. Kh5 $19) 46... Be3+ {[%emt 0:04:02] Weighted Error Value: White=0.34/Black=0.03 (flawless)} 0-1

[Event "IV Estrellas 2022"]
[Site "La Palma"]
[Date "2022.08.09"]
[Round "6.12"]
[White "Brito Garcia, Alfredo"]
[Black "Ramirez Maillo, Cristian"]
[Result "1-0"]
[ECO "A49"]
[WhiteElo "2291"]
[BlackElo "1896"]
[Annotator "TA"]
[PlyCount "43"]
[EventDate "2022.08.06"]
[EventType "swiss"]
[EventCountry "ESP"]
[SourceTitle "playchess.com"]
[Source "ChessBase"]
[SourceQuality "1"]
[TimeControl "5400+30"]

{[%evp 11,43,24,13,2,29,29,29,33,48,45,84,74,81,72,79,43,81,27,50,17,18,15,28,6,19,0,8,22,88,53,823,827,29998,29999]} 1. Nf3 {[%emt 0:00:09]} Nf6 {[%emt 0:00:23]} 2. g3 {[%emt 0:00:08]} g6 {[%emt 0:00:31]} 3. d4 {[%emt 0:00:14]} Bg7 {[%emt 0:00:31]} 4. Bg2 {[%emt 0:00:08]} O-O {[%emt 0:00:16]} 5. O-O {[%emt 0:00:08]} d6 {[%emt 0:00:11]} 6. a4 {[%emt 0:00:11]} a5 {[%emt 0:00:54]} 7. Bf4 {[%emt 0:00:08] A49: 1 d4 Nf6 2 Nf3 g6 3 g3: Anti-King's Indian systems.} Nbd7 {[%emt 0:00:50]} 8. Nc3 {[%emt 0:01:50] [#]} Re8 $146 {[%emt 0:02:35]} ({Predecessor:} 8... c6 9. e4 Nb6 10. Qc1 Re8 11. Re1 Bg4 12. h3 Bxf3 13. Bxf3 Nfd7 14. e5 dxe5 15. dxe5 {1-0 (48) Pert,N (2546)-Yoseph,T (2455) Chess.com INT 2021}) 9. e4 {[%emt 0:00:36] White has an edge.} Nh5 {[%emt 0:03:37]} 10. Bg5 {[%emt 0:02:15]} h6 {[%emt 0:02:37] [#]} 11. Be3 {[%emt 0:00:40][%cal Bg5e3,Be3c5,Bc5d6,Bd6f8][%mdl 32]} e5 {[%emt 0:00:40]} 12. Qd2 {[%emt 0:01:50]} Kh7 {[%emt 0:00:58]} 13. Rad1 {[%emt 0:01:24] White is more active.} c6 {[%emt 0:01:25]} 14. dxe5 {[%emt 0:04:09]} (14. h3 $16) 14... dxe5 $11 {[%emt 0:00:41]} 15. Bh3 {[%emt 0:03:24][%cal Rh3d7]} (15. Bc5 $5) 15... Nhf6 {[%emt 0:01:46]} 16. Bc5 {[%emt 0:05:02]} Qc7 {[%emt 0:01:06]} 17. Bd6 {[%emt 0:02:01]} Qb6 {[%emt 0:00:34]} 18. Qc1 {[%emt 0:04:18]} Bf8 {[%emt 0:12:16]} 19. Nd2 $36 {[%emt 0:02:50][%cal Ob2b3][%mdl 2048] White fights for an advantage.} Nc5 {[%emt 0:07:39]} ({Don't take} 19... Bxd6 20. Nc4 Qb4 21. Nxd6 $14) (19... Qa7 $11 {remains equal.} 20. Nf3 Bg7) 20. Bxf8 {[%emt 0:05:51]} ({Inferior is} 20. Nc4 Qb4 21. Bxc8 Qxc4 22. Bxc5 Qxc5 $15) 20... Bxh3 $4 {[%emt 0:04:54][%mdl 8192] [#]} (20... Rxf8 $14 21. Bxc8 Raxc8) 21. Nc4 $1 $18 {[%emt 0:00:14][%csl LRb6,LRh6]} Qb4 {[%emt 0:00:14]} 22. Qxh6+ {[%emt 0:00:07] Weighted Error Value: White=0.15 (very precise) /Black=0.55} 1-0

[Event "IV Estrellas 2022"]
[Site "La Palma"]
[Date "2022.08.09"]
[Round "6.13"]
[White "Arnaiz Yanes, Miguel Angel"]
[Black "Antic, Dejan"]
[Result "1/2-1/2"]
[ECO "A46"]
[WhiteElo "1923"]
[BlackElo "2452"]
[Annotator "TA"]
[PlyCount "75"]
[EventDate "2022.08.06"]
[EventType "swiss"]
[EventCountry "ESP"]
[SourceTitle "playchess.com"]
[Source "ChessBase"]
[SourceQuality "1"]
[TimeControl "5400+30"]

{[%evp 12,75,24,22,40,18,21,22,27,19,30,13,21,15,11,19,52,-10,-6,-73,-36,-50,-43,-131,-122,-117,-118,-122,-77,-72,-81,-80,-67,-70,0,0,0,0,89,100,102,104,98,101,104,106,106,8,102,85,238,228,237,224,225,249,229,197,191,167,290,0,0,0,253,0]} 1. d4 {[%emt 0:00:03]} Nf6 {[%emt 0:01:57]} 2. Nf3 {[%emt 0:00:07]} e6 {[%emt 0:00:17]} 3. Bg5 {[%emt 0:00:08]} h6 {[%emt 0:00:11]} 4. Bh4 {[%emt 0:00:20]} g5 {[%emt 0:00:43]} 5. Bg3 {[%emt 0:00:05]} Ne4 {[%emt 0:00:34]} 6. Nbd2 {[%emt 0:00:52]} Nxg3 {[%emt 0:00:24]} 7. hxg3 {[%emt 0:00:41]} Bg7 {[%emt 0:00:08] A46: 1 d4 Nf6 2 Nf3 e6: Torre, London and Colle Systems.} 8. e3 {[%emt 0:00:09]} d6 {[%emt 0:01:14]} 9. Bd3 {[%emt 0:00:33]} Nc6 {[%emt 0:01:04] The position is equal.} 10. c3 {[%emt 0:00:17]} Bd7 {[%emt 0:03:03]} 11. Qe2 {[%emt 0:00:46]} Qe7 {[%emt 0:00:27]} 12. e4 {[%emt 0:01:51]} O-O-O {[%emt 0:02:21] [#]} 13. b4 $146 {[%emt 0:00:21]} ({Predecessor:} 13. O-O-O Kb8 14. Kb1 h5 15. Nc4 g4 16. Nh4 Qg5 17. Ne3 Bh6 18. Bc2 Ne7 19. Rde1 {0-1 (61) Pankov,G (2404)-Riazantsev,A (2646) Minsk 2015}) 13... g4 {[%emt 0:01:22]} 14. Nh2 {[%emt 0:02:00]} (14. Nh4 $14) 14... h5 $1 $11 {[%emt 0:00:18]} 15. a4 {[%emt 0:00:21]} (15. b5 $11 {remains equal.} Na5 16. Nb3) 15... Qg5 {[%emt 0:01:27]} 16. a5 {[%emt 0:04:44]} h4 {[%emt 0:05:36] White must now prevent ...hxg3.} 17. Nhf1 {[%emt 0:12:27]} (17. Qxg4 $15 Qxg4 18. Nxg4) 17... hxg3 $17 {[%emt 0:01:06]} 18. Nxg3 {[%emt 0:00:29]} Rxh1+ {[%emt 0:01:12]} 19. Nxh1 {[%emt 0:00:08]} f5 {[%emt 0:02:18][%cal Og7d4] Hoping for ...Bxd4!} 20. Ng3 {[%emt 0:01:34]} f4 {[%emt 0:02:01]} 21. Ngf1 {[%emt 0:00:14]} Rh8 {[%emt 0:02:02]} 22. b5 {[%emt 0:02:26]} Nxd4 {[%emt 0:02:49]} 23. cxd4 $11 {[%emt 0:00:35]} Bxd4 {[%emt 0:00:08]} 24. Rc1 {[%emt 0:01:29]} g3 {[%emt 0:06:58]} (24... Qg7 $11 {keeps the balance.}) 25. fxg3 $1 $16 {[%emt 0:03:15]} fxg3 {[%emt 0:00:10] And now ...Rf8 would win.} 26. Kd1 $1 {[%emt 0:01:50]} Kb8 {[%emt 0:05:03]} 27. Nf3 {[%emt 0:00:37][%csl LRd4,LRg5]} Qg7 {[%emt 0:00:35]} 28. Nxd4 {[%emt 0:03:22]} Qxd4 {[%emt 0:00:55] [#]} 29. Qc2 {[%emt 0:03:01]} (29. Ke1 $1 $16) 29... Rc8 {[%emt 0:00:37]} (29... Bxb5 $2 30. Qxc7+ Ka8 {[#]} 31. Qc8+ $3 {[%mdl 512]} Rxc8 32. Rxc8#) (29... Rf8 $1 $11 30. Ke1 (30. Qxc7+ Ka8 $11) (30. Nxg3 Qg1+ 31. Kd2 Qxg2+ 32. Ne2 Qg5+ 33. Ke1 c5 $11) 30... c5) 30. Qc3 {[%emt 0:07:13]} ({But not} 30. Nxg3 Bxb5 31. Kd2 (31. Ke2 Qe5 $11) 31... Qe5 32. Bxb5 Qxg3 $14) 30... Qa4+ {[%emt 0:04:42]} (30... Qg1 $16) 31. Ke1 $18 {[%emt 0:00:43] Ra1 is the strong threat.} c5 {[%emt 0:02:36]} 32. Ra1 {[%emt 0:01:54]} ({Much less strong is} 32. Nxg3 $6 c4 33. Be2 (33. Bxc4 Bxb5 34. Bxb5 Rxc3 $11) 33... Qxb5 $16) 32... Qd4 {[%emt 0:00:25]} 33. Qxd4 {[%emt 0:00:12]} cxd4 {[%emt 0:00:06]} 34. Nxg3 {[%emt 0:00:14]} Rc3 {[%emt 0:00:23]} 35. Kd2 {[%emt 0:00:15]} Rb3 {[%emt 0:00:34]} (35... Bxb5 {might work better.} 36. Bxb5 Rxg3) 36. Kc2 {[%emt 0:03:07]} Rc3+ {[%emt 0:00:12]} 37. Kd2 {[%emt 0:00:07] Threatens to win with Ne2.} Rb3 $1 {[%emt 0:00:05]} 38. Kc2 $2 {[%emt 0:01:01] Prevents Rb2+.  Weighted Error Value: White=0.29 (precise) /Black=0.24 (precise)} (38. Ne2 $18 e5 39. Kc2) 1/2-1/2

[Event "IV Estrellas 2022"]
[Site "La Palma"]
[Date "2022.08.09"]
[Round "6.14"]
[White "Rodriguez Bittar, Karim Javier"]
[Black "Capote Robayna, Nathaniel"]
[Result "0-1"]
[ECO "B25"]
[WhiteElo "1881"]
[BlackElo "2150"]
[Annotator "TA"]
[PlyCount "80"]
[EventDate "2022.08.06"]
[EventType "swiss"]
[EventCountry "ESP"]
[SourceTitle "playchess.com"]
[Source "ChessBase"]
[SourceQuality "1"]
[TimeControl "5400+30"]

{[%evp 11,79,-13,21,14,9,8,16,0,0,1,9,0,47,0,18,13,20,12,23,-10,-8,-12,-7,-10,-2,-6,1,4,26,32,25,16,36,34,70,38,35,24,24,29,62,0,0,-6,0,-12,0,-30,0,0,-14,-10,0,0,0,-28,-18,-15,18,26,27,62,54,54,43,53,231,-29998,-29999,-29999]} 1. e4 {[%emt 0:00:30]} c5 {[%emt 0:00:17]} 2. Nc3 {[%emt 0:00:10]} Nc6 {[%emt 0:00:09][%cal Bb8c6,Bc6d4,Bd4e2][%mdl 32]} 3. g3 {[%emt 0:00:13]} g6 {[%emt 0:00:29]} 4. Bg2 {[%emt 0:00:06]} Bg7 {[%emt 0:00:09]} 5. d3 {[%emt 0:00:09]} d6 {[%emt 0:00:30]} 6. f4 {[%emt 0:00:31]} Nd4 {[%emt 0:04:34]} 7. Nce2 {[%emt 0:01:15] B25: Closed Sicilian: 3 g3, lines without early Be3.} e6 {[%emt 0:02:52]} 8. c3 {[%emt 0:00:37]} Nxe2 {[%emt 0:00:28]} 9. Nxe2 {[%emt 0:00:26] The position is equal.} Ne7 {[%emt 0:00:13]} 10. O-O {[%emt 0:07:03]} O-O {[%emt 0:00:35]} 11. Be3 {[%emt 0:00:37]} f5 {[%emt 0:08:19] [#]} (11... b6 $11 {might be stronger.}) 12. a4 $146 {[%emt 0:05:12]} (12. e5 $14 {is superior.}) ({Predecessor:} 12. Qd2 Rb8 13. h3 b5 14. g4 b4 15. d4 bxc3 16. bxc3 Qc7 17. Ng3 Ba6 18. Rfd1 Bc4 19. Qf2 fxg4 20. hxg4 cxd4 21. cxd4 {0-1 (36) Bonugli,C (2046)-Gromovs,S (2341) Crema 2004}) 12... Qc7 {[%emt 0:02:14]} 13. Qd2 {[%emt 0:04:22]} Rd8 {[%emt 0:00:40]} 14. Bf2 {[%emt 1:16:19]} Rb8 {[%emt 0:01:34]} 15. Qc2 {[%emt 0:00:00]} b6 {[%emt 0:00:42]} 16. Rfe1 {[%emt 0:00:00]} Ba6 {[%emt 0:04:15]} 17. Kh1 {[%emt 0:00:00]} Bb7 {[%emt 0:09:46]} 18. Qb3 {[%emt 0:00:00]} Qc8 {[%emt 0:01:45]} 19. Ng1 {[%emt 0:00:00][%cal Be2g1,Bg1f3,Bf3g5][%mdl 32]} fxe4 {[%emt 0:02:42]} 20. dxe4 {[%emt 0:03:00]} c4 {[%emt 0:03:20]} 21. Qa3 {[%emt 0:00:00]} Qc7 {[%emt 0:03:17]} 22. Nf3 {[%emt 0:00:00]} e5 {[%emt 0:01:48]} 23. Ng5 {[%emt 0:00:00] aiming for Ne6.} Bc8 {[%emt 0:00:25] Inhibits Ne6.} 24. Rad1 {[%emt 0:00:00]} h6 {[%emt 0:00:54]} 25. Nf3 {[%emt 0:00:00]} Bb7 {[%emt 0:07:29]} 26. fxe5 {[%emt 0:00:00]} (26. a5 $14) 26... dxe5 $11 {[%emt 0:00:14]} 27. Nd2 {[%emt 0:00:00][%cal Od2c4]} Nc8 {[%emt 0:05:18]} 28. Nf1 {[%emt 0:00:00]} Nd6 {[%emt 0:00:54][%cal Od6e4] Strongly threatening ...Nxe4!} 29. Qa1 {[%emt 0:00:00]} Rf8 {[%emt 0:03:16]} 30. Bg1 {[%emt 0:00:00]} Rbd8 {[%emt 0:04:34]} 31. Qb1 {[%emt 0:00:00][%cal Oa4a5]} Bc6 {[%emt 0:01:19]} 32. Qc2 {[%emt 0:00:00]} Qb7 {[%emt 0:02:08]} 33. Rd2 {[%emt 0:00:00]} Kh7 {[%emt 0:06:45]} 34. h4 {[%emt 0:00:00]} Rxf1 {[%emt 0:07:38]} 35. Rxf1 {[%emt 0:00:00] Kh2 is the strong threat.} Nxe4 {[%emt 0:02:41]} 36. Rxd8 {[%emt 0:00:00]} Nxg3+ {[%emt 0:00:13]} 37. Kh2 {[%emt 0:00:00]} Nxf1+ {[%emt 0:00:12]} 38. Bxf1 {[%emt 0:00:00]} Qe7 $2 {[%emt 0:00:09] [#]} (38... e4 $1 $14 39. Qd1 Qe7) 39. Rd1 $4 {[%emt 0:00:17][%mdl 8192]} (39. h5 $2 {leads to mate.} Qh4+ 40. Bh3 Qf4#) (39. Qd2 $18) 39... Qxh4+ {[%emt 0:00:10]} 40. Bh3 {[%emt 0:00:40]} Qf4# {[%emt 0:00:05] Weighted Error Value: White=0.28 (precise) /Black=0.17 (very precise)} 0-1